[Event "GrandPrix_29.05"]
[Site "Chess.com"]
[Date "2020.05.29"]
[Round "5"]
[White "XeresLt"]
[Black "ChessQueen"]
[Result "1-0"]
[WhiteElo "1870"]
[BlackElo "1911"]
[TimeControl "600+2"]
[EndTime "11:29:28 PDT"]
[Termination "XeresLt won by resignation"]

1. e4 {[%clk 0:10:01.9]} 1... c6 {[%clk 0:10:00.3]} 2. d4 {[%clk 0:09:58.8]}
2... d5 {[%clk 0:10:01]} 3. exd5 {[%clk 0:10:00.2]} 3... cxd5 {[%clk 0:10:01.7]}
4. c4 {[%clk 0:10:01.7]} 4... Nf6 {[%clk 0:10:01]} 5. Nc3 {[%clk 0:10:03]} 5...
Nc6 {[%clk 0:10:00.1]} 6. Nf3 {[%clk 0:10:03.3]} 6... a6 {[%clk 0:09:53]} 7.
cxd5 {[%clk 0:10:02.6]} 7... Nxd5 {[%clk 0:09:53.2]} 8. Bd3 {[%clk 0:10:03.7]}
8... g6 {[%clk 0:09:50.5]} 9. h3 {[%clk 0:10:03.1]} 9... Bg7 {[%clk 0:09:48.4]}
10. O-O {[%clk 0:10:04.3]} 10... O-O {[%clk 0:09:47.5]} 11. Re1 {[%clk
0:09:52.6]} 11... Nxc3 {[%clk 0:09:01]} 12. bxc3 {[%clk 0:09:52.9]} 12... Qc7
{[%clk 0:08:23.3]} 13. Ba3 {[%clk 0:09:32.7]} 13... Bf6 {[%clk 0:08:05.7]} 14.
Rc1 {[%clk 0:09:20.8]} 14... Re8 {[%clk 0:08:02.6]} 15. d5 {[%clk 0:09:12]}
15... Ne5 {[%clk 0:07:44.5]} 16. Nxe5 {[%clk 0:09:03.7]} 16... Bxe5 {[%clk
0:07:45.4]} 17. c4 {[%clk 0:09:04.7]} 17... Bd7 {[%clk 0:06:53.5]} 18. c5 {[%clk
0:08:57.1]} 18... Bf6 {[%clk 0:06:38.3]} 19. Qd2 {[%clk 0:08:31.2]} 19... Rac8
{[%clk 0:04:26.7]} 20. Bb4 {[%clk 0:07:03.8]} 20... Qb8 {[%clk 0:04:24.2]} 21.
Rb1 {[%clk 0:06:48.8]} 21... Qa7 {[%clk 0:04:21.9]} 22. Rec1 {[%clk 0:06:43.9]}
22... Bb5 {[%clk 0:04:10.4]} 23. Be4 {[%clk 0:06:39.3]} 23... Kg7 {[%clk
0:03:36.4]} 24. g3 {[%clk 0:05:34.2]} 24... h6 {[%clk 0:03:32.5]} 25. h4 {[%clk
0:05:33.5]} 25... h5 {[%clk 0:02:58.3]} 26. Qe3 {[%clk 0:05:22.9]} 26... Kg8
{[%clk 0:02:43.4]} 27. Kg2 {[%clk 0:05:12.1]} 27... Bg7 {[%clk 0:02:41.3]} 28.
Rc2 {[%clk 0:04:19.1]} 28... Qb8 {[%clk 0:02:38.9]} 29. Qf3 {[%clk 0:04:09]}
29... f5 {[%clk 0:02:12.3]} 30. Bd3 {[%clk 0:04:06.4]} 30... Bxd3 {[%clk
0:02:13.4]} 31. Qxd3 {[%clk 0:04:07.4]} 31... Red8 {[%clk 0:02:10.4]} 32. Re1
{[%clk 0:03:46.9]} 32... e5 {[%clk 0:02:03.2]} 33. d6 {[%clk 0:03:43.8]} 33...
Rd7 {[%clk 0:01:58.5]} 34. Qd5+ {[%clk 0:03:43.1]} 34... Kh7 {[%clk 0:01:59.7]}
35. Rd2 {[%clk 0:02:58.2]} 35... Re8 {[%clk 0:01:48.5]} 36. Bc3 {[%clk
0:02:50.4]} 36... e4 {[%clk 0:01:44]} 37. Bxg7 {[%clk 0:02:45.4]} 37... Kxg7
{[%clk 0:01:43.9]} 38. Rb1 {[%clk 0:02:44]} 38... Rf8 {[%clk 0:01:18.9]} 39. Rb6
{[%clk 0:02:36.5]} 39... Qc8 {[%clk 0:01:16.4]} 40. Rdb2 {[%clk 0:02:24.3]}
40... Rff7 {[%clk 0:01:17.7]} 41. Qe5+ {[%clk 0:02:01.3]} 41... Kh7 {[%clk
0:01:12.6]} 42. c6 {[%clk 0:01:58.2]} 1-0

[Event "GrandPrix_29.05"]
[Site "Chess.com"]
[Date "2020.05.29"]
[Round "5"]
[White "Sporty207"]
[Black "klippfiskkjerringa"]
[Result "1-0"]
[WhiteElo "2220"]
[BlackElo "2047"]
[TimeControl "600+2"]
[EndTime "11:29:36 PDT"]
[Termination "Sporty207 won by resignation"]

1. d4 {[%clk 0:10:01.9]} 1... Nf6 {[%clk 0:10:00.7]} 2. c4 {[%clk 0:10:02.5]}
2... c5 {[%clk 0:10:02.1]} 3. d5 {[%clk 0:10:03.1]} 3... b5 {[%clk 0:10:03.5]}
4. cxb5 {[%clk 0:10:03.7]} 4... a6 {[%clk 0:10:05.1]} 5. bxa6 {[%clk 0:10:04.7]}
5... g6 {[%clk 0:10:06.6]} 6. Nc3 {[%clk 0:10:05.6]} 6... Bg7 {[%clk 0:10:08.1]}
7. e4 {[%clk 0:10:06.8]} 7... O-O {[%clk 0:10:09.3]} 8. Nf3 {[%clk 0:09:58.5]}
8... Qa5 {[%clk 0:10:10.1]} 9. Bd2 {[%clk 0:09:57.2]} 9... Bxa6 {[%clk
0:10:10.3]} 10. Be2 {[%clk 0:09:53.7]} 10... Qb4 {[%clk 0:10:09.5]} 11. Bxa6
{[%clk 0:07:53.7]} 11... Nxa6 {[%clk 0:09:55.6]} 12. Qe2 {[%clk 0:07:54.1]}
12... Qxb2 {[%clk 0:09:05]} 13. Rb1 {[%clk 0:07:53.4]} 13... Qa3 {[%clk
0:09:00.4]} 14. e5 {[%clk 0:07:54.3]} 14... Ne8 {[%clk 0:08:36.8]} 15. O-O
{[%clk 0:07:42.9]} 15... Nb4 {[%clk 0:08:19]} 16. Rb3 {[%clk 0:07:19.1]} 16...
Qa6 {[%clk 0:08:13.5]} 17. Qxa6 {[%clk 0:07:02.1]} 17... Rxa6 {[%clk 0:08:02.7]}
18. Ne4 {[%clk 0:06:58.3]} 18... d6 {[%clk 0:07:19.5]} 19. exd6 {[%clk
0:06:52.9]} 19... exd6 {[%clk 0:07:11.3]} 20. Bxb4 {[%clk 0:06:52.8]} 20... cxb4
{[%clk 0:07:10.8]} 21. Rxb4 {[%clk 0:06:54.4]} 21... Rxa2 {[%clk 0:07:02.2]} 22.
Rb7 {[%clk 0:06:46.8]} 22... Nf6 {[%clk 0:06:44.8]} 23. Nxd6 {[%clk 0:06:21.9]}
23... Nxd5 {[%clk 0:06:44]} 24. Ng5 {[%clk 0:06:20.8]} 24... h6 {[%clk
0:04:14.2]} 25. Ngxf7 {[%clk 0:06:19.6]} 25... Re2 {[%clk 0:04:14.6]} 26. g3
{[%clk 0:06:03.3]} 26... Ne7 {[%clk 0:03:53.4]} 27. Rfb1 {[%clk 0:05:21.6]}
27... Rxf7 {[%clk 0:03:45.9]} 28. Nxf7 {[%clk 0:05:19]} 28... Kxf7 {[%clk
0:03:47]} 29. Ra7 {[%clk 0:05:13.1]} 29... Bd4 {[%clk 0:03:43]} 30. Ra4 {[%clk
0:04:48]} 30... Bxf2+ {[%clk 0:03:42.7]} 31. Kf1 {[%clk 0:04:42]} 31... Bxg3
{[%clk 0:03:03.5]} 32. Kxe2 {[%clk 0:04:33.5]} 32... Bxh2 {[%clk 0:03:04.4]} 33.
Rh1 {[%clk 0:04:28.2]} 33... Be5 {[%clk 0:02:55.9]} 34. Rxh6 {[%clk 0:04:30.1]}
34... Kg7 {[%clk 0:02:43.6]} 35. Rh1 {[%clk 0:04:15.9]} 35... Nf5 {[%clk
0:02:38.8]} 36. Ra7+ {[%clk 0:04:10.4]} 36... Kf6 {[%clk 0:02:37.1]} 37. Ra6+
{[%clk 0:04:11.5]} 37... Nd6 {[%clk 0:02:27.5]} 38. Ke3 {[%clk 0:03:24.7]} 38...
Ke6 {[%clk 0:02:24]} 39. Rd1 {[%clk 0:03:21.2]} 39... Ke7 {[%clk 0:02:20.1]} 40.
Re1 {[%clk 0:03:08.5]} 40... Kf6 {[%clk 0:02:19]} 41. Kf3 {[%clk 0:03:06.5]}
41... Kf5 {[%clk 0:02:09]} 42. Ra5 {[%clk 0:02:58.2]} 42... Nf7 {[%clk
0:02:08.6]} 43. Kg2 {[%clk 0:02:39.4]} 43... Ke6 {[%clk 0:01:48.1]} 44. Ra6+
{[%clk 0:02:39.2]} 44... Nd6 {[%clk 0:01:47.8]} 45. Kh3 {[%clk 0:02:32.1]} 45...
Kf5 {[%clk 0:01:47.7]} 46. Ra5 {[%clk 0:01:50.8]} 46... Nf7 {[%clk 0:01:48.1]}
47. Rf1+ {[%clk 0:01:48.4]} 47... Ke6 {[%clk 0:01:48.9]} 48. Rxf7 {[%clk
0:01:47.6]} 48... Kxf7 {[%clk 0:01:41.6]} 49. Rxe5 {[%clk 0:01:48.2]} 1-0

[Event "GrandPrix_29.05"]
[Site "Chess.com"]
[Date "2020.05.29"]
[Round "5"]
[White "Hrant_ChessMood"]
[Black "Bosiocic"]
[Result "1-0"]
[WhiteElo "2947"]
[BlackElo "2725"]
[TimeControl "600+2"]
[EndTime "11:29:39 PDT"]
[Termination "Hrant_ChessMood won by resignation"]

1. d4 {[%clk 0:10:01.9]} 1... d6 {[%clk 0:10:01.1]} 2. Nf3 {[%clk 0:09:59.7]}
2... Nf6 {[%clk 0:10:00.4]} 3. c4 {[%clk 0:10:00.7]} 3... g6 {[%clk 0:10:01.4]}
4. Nc3 {[%clk 0:10:00.9]} 4... Bf5 {[%clk 0:10:02.5]} 5. g3 {[%clk 0:09:37.8]}
5... Bg7 {[%clk 0:10:01.5]} 6. Bg2 {[%clk 0:09:38.3]} 6... c6 {[%clk 0:10:01.9]}
7. O-O {[%clk 0:09:36.5]} 7... O-O {[%clk 0:10:02.8]} 8. Ne1 {[%clk 0:09:25.1]}
8... Be6 {[%clk 0:09:57.6]} 9. d5 {[%clk 0:09:08.7]} 9... Bd7 {[%clk 0:09:53.8]}
10. Nd3 {[%clk 0:09:00.4]} 10... cxd5 {[%clk 0:09:45.7]} 11. cxd5 {[%clk
0:09:00.2]} 11... a5 {[%clk 0:09:44.1]} 12. h3 {[%clk 0:08:43.1]} 12... Na6
{[%clk 0:09:41.8]} 13. Be3 {[%clk 0:08:38.1]} 13... b5 {[%clk 0:09:32.4]} 14.
Rc1 {[%clk 0:08:03.4]} 14... Rb8 {[%clk 0:09:23.6]} 15. Kh2 {[%clk 0:07:23]}
15... Nc7 {[%clk 0:09:21.1]} 16. b4 {[%clk 0:07:09.8]} 16... Na6 {[%clk
0:08:31.4]} 17. a3 {[%clk 0:07:05.4]} 17... h5 {[%clk 0:08:29]} 18. Qd2 {[%clk
0:06:33]} 18... Bf5 {[%clk 0:08:11.3]} 19. Rb1 {[%clk 0:05:46.1]} 19... a4
{[%clk 0:07:14.5]} 20. Rbc1 {[%clk 0:05:39.2]} 20... Qd7 {[%clk 0:07:11.3]} 21.
Rfd1 {[%clk 0:05:00.4]} 21... Rfc8 {[%clk 0:07:07.7]} 22. Bh6 {[%clk 0:04:25.5]}
22... Bh8 {[%clk 0:06:26.8]} 23. Bg5 {[%clk 0:04:19.5]} 23... Nh7 {[%clk
0:04:52]} 24. Bf4 {[%clk 0:04:12]} 24... g5 {[%clk 0:04:46.9]} 25. Be3 {[%clk
0:04:02.1]} 25... Rc4 {[%clk 0:04:28.9]} 26. Nb2 {[%clk 0:03:47.8]} 26... Rc7
{[%clk 0:04:29.9]} 27. Bd4 {[%clk 0:03:44.6]} 27... Rbc8 {[%clk 0:04:19.6]} 28.
Bxh8 {[%clk 0:03:44.5]} 28... Kxh8 {[%clk 0:04:20.2]} 29. e4 {[%clk 0:03:38.2]}
29... Bg6 {[%clk 0:04:18.5]} 30. Bf1 {[%clk 0:03:36.4]} 30... Rb8 {[%clk
0:03:38.7]} 31. Nbxa4 {[%clk 0:02:35.5]} 31... Nxb4 {[%clk 0:03:27.5]} 32. Qd4+
{[%clk 0:02:33.1]} 32... Nf6 {[%clk 0:03:11.1]} 33. Qxb4 {[%clk 0:02:34.1]}
33... Qc8 {[%clk 0:03:09.6]} 34. Bxb5 {[%clk 0:02:23.6]} 34... Nxe4 {[%clk
0:03:03.1]} 35. Nxe4 {[%clk 0:02:12.1]} 35... Bxe4 {[%clk 0:02:42]} 36. Rxc7
{[%clk 0:02:12.4]} 36... Qxc7 {[%clk 0:02:42.8]} 37. Qxe4 {[%clk 0:01:56.1]}
37... Rxb5 {[%clk 0:02:43.6]} 38. Rd2 {[%clk 0:01:39.3]} 38... Qc1 {[%clk
0:02:13]} 39. Qc2 {[%clk 0:01:24.7]} 39... Qe1 {[%clk 0:01:52.4]} 40. Qd1 {[%clk
0:01:23.5]} 40... Qe5 {[%clk 0:01:51.3]} 41. Qxh5+ {[%clk 0:01:21.2]} 41... Kg8
{[%clk 0:01:51.4]} 42. Qe2 {[%clk 0:01:15.7]} 1-0

[Event "GrandPrix_29.05"]
[Site "Chess.com"]
[Date "2020.05.29"]
[Round "5"]
[White "fujiwara_hoga"]
[Black "econpower"]
[Result "0-1"]
[WhiteElo "2098"]
[BlackElo "2124"]
[TimeControl "600+2"]
[EndTime "11:29:45 PDT"]
[Termination "econpower won by checkmate"]

1. d4 {[%clk 0:10:01.9]} 1... d6 {[%clk 0:10:00.4]} 2. Nf3 {[%clk 0:10:00.1]}
2... g6 {[%clk 0:10:01]} 3. c4 {[%clk 0:09:59]} 3... Bg7 {[%clk 0:10:01.6]} 4.
Nc3 {[%clk 0:10:00]} 4... Nd7 {[%clk 0:10:02.6]} 5. e4 {[%clk 0:10:00.5]} 5...
e5 {[%clk 0:10:03.6]} 6. Be2 {[%clk 0:09:58.1]} 6... Ne7 {[%clk 0:10:04.5]} 7.
O-O {[%clk 0:09:57.4]} 7... O-O {[%clk 0:10:05.5]} 8. dxe5 {[%clk 0:09:33.3]}
8... dxe5 {[%clk 0:10:05.9]} 9. Be3 {[%clk 0:09:17.3]} 9... c5 {[%clk 0:10:02]}
10. Nd5 {[%clk 0:08:30.5]} 10... Nc6 {[%clk 0:10:02.2]} 11. Ne1 {[%clk
0:08:25.9]} 11... Re8 {[%clk 0:09:43.7]} 12. Qd2 {[%clk 0:08:23.4]} 12... b6
{[%clk 0:09:38.9]} 13. Nd3 {[%clk 0:08:22.7]} 13... Nf8 {[%clk 0:09:32.9]} 14.
Rfc1 {[%clk 0:08:21.4]} 14... Ne6 {[%clk 0:09:31.1]} 15. a3 {[%clk 0:08:18.3]}
15... Ned4 {[%clk 0:09:20.5]} 16. Bd1 {[%clk 0:08:17.6]} 16... f5 {[%clk
0:08:40.4]} 17. Bg5 {[%clk 0:07:54.7]} 17... Qd6 {[%clk 0:08:40.9]} 18. f3
{[%clk 0:07:48]} 18... f4 {[%clk 0:07:47.4]} 19. b4 {[%clk 0:07:43.7]} 19... Ne6
{[%clk 0:07:42.8]} 20. Bh4 {[%clk 0:07:20.1]} 20... g5 {[%clk 0:07:41]} 21. Be1
{[%clk 0:07:05.6]} 21... Ncd4 {[%clk 0:07:34.7]} 22. bxc5 {[%clk 0:06:42.1]}
22... bxc5 {[%clk 0:07:33.4]} 23. Qa5 {[%clk 0:06:25.7]} 23... h5 {[%clk
0:07:32.6]} 24. Rab1 {[%clk 0:06:15.5]} 24... Nc6 {[%clk 0:07:01.8]} 25. Qd2
{[%clk 0:05:26.2]} 25... g4 {[%clk 0:07:01.8]} 26. fxg4 {[%clk 0:04:59.5]} 26...
Ng5 {[%clk 0:07:01.7]} 27. gxh5 {[%clk 0:04:52.5]} 27... Nxe4 {[%clk 0:07:02.6]}
28. Qe2 {[%clk 0:04:43.5]} 28... Bf5 {[%clk 0:07:03]} 29. Rb7 {[%clk 0:04:28.4]}
29... Nd4 {[%clk 0:06:57.9]} 30. Qf1 {[%clk 0:04:26.6]} 30... Bc8 {[%clk
0:06:31.5]} 31. Rxg7+ {[%clk 0:03:59.3]} 31... Kxg7 {[%clk 0:06:30.9]} 32. Nf2
{[%clk 0:03:58.4]} 32... Nxf2 {[%clk 0:06:14]} 33. Qxf2 {[%clk 0:03:36.2]} 33...
Bb7 {[%clk 0:05:59.3]} 34. Qh4 {[%clk 0:03:23.4]} 34... Bxd5 {[%clk 0:05:37.5]}
35. Qg5+ {[%clk 0:03:21]} 35... Kh7 {[%clk 0:05:33.7]} 36. cxd5 {[%clk
0:03:18.2]} 36... Rg8 {[%clk 0:05:31.7]} 37. Qh4 {[%clk 0:03:09.5]} 37... Qxd5
{[%clk 0:05:28.8]} 38. Qh3 {[%clk 0:03:07.8]} 38... Rg7 {[%clk 0:05:02.5]} 39.
h6 {[%clk 0:02:06.6]} 39... Rg6 {[%clk 0:05:00.8]} 40. Bh5 {[%clk 0:02:01.9]}
40... Rg5 {[%clk 0:04:50.5]} 41. Rb1 {[%clk 0:01:43.3]} 41... Rag8 {[%clk
0:04:37.4]} 42. g4 {[%clk 0:01:22.3]} 42... e4 {[%clk 0:04:15.1]} 43. Kf1 {[%clk
0:00:53.7]} 43... Qc4+ {[%clk 0:03:42.9]} 44. Kg1 {[%clk 0:00:51.7]} 44... Nf3+
{[%clk 0:03:39]} 45. Kh1 {[%clk 0:00:11.9]} 45... Rxh5 {[%clk 0:03:20.9]} 46.
Rb7+ {[%clk 0:00:08.2]} 46... Kh8 {[%clk 0:03:21.9]} 47. Bc3+ {[%clk 0:00:02.7]}
47... Qxc3 {[%clk 0:03:21.8]} 48. Qxh5 {[%clk 0:00:03.1]} 48... Qe1+ {[%clk
0:03:20.9]} 49. Kg2 {[%clk 0:00:04.3]} 49... Qg1+ {[%clk 0:03:21.9]} 50. Kh3
{[%clk 0:00:06.2]} 50... Qf1# {[%clk 0:03:23]} 0-1

[Event "GrandPrix_29.05"]
[Site "Chess.com"]
[Date "2020.05.29"]
[Round "5"]
[White "Alexander_Moskalenko"]
[Black "Gabix_94"]
[Result "1-0"]
[WhiteElo "2377"]
[BlackElo "2421"]
[TimeControl "600+2"]
[EndTime "11:29:47 PDT"]
[Termination "Alexander_Moskalenko won by resignation"]

1. d4 {[%clk 0:09:58.7]} 1... Nf6 {[%clk 0:09:58.8]} 2. c4 {[%clk 0:09:45.7]}
2... c5 {[%clk 0:09:52.1]} 3. Nf3 {[%clk 0:09:37.3]} 3... cxd4 {[%clk
0:09:49.7]} 4. Nxd4 {[%clk 0:09:35.4]} 4... Nc6 {[%clk 0:09:47.1]} 5. Nc3 {[%clk
0:09:34]} 5... Qb6 {[%clk 0:09:43.8]} 6. Nb3 {[%clk 0:09:16.3]} 6... e6 {[%clk
0:09:43.4]} 7. a3 {[%clk 0:09:06.2]} 7... Be7 {[%clk 0:09:24.1]} 8. Be3 {[%clk
0:09:06.6]} 8... Qc7 {[%clk 0:09:23.4]} 9. Rc1 {[%clk 0:09:08.1]} 9... O-O
{[%clk 0:09:21.2]} 10. g3 {[%clk 0:08:53]} 10... Ne5 {[%clk 0:08:42.5]} 11. c5
{[%clk 0:08:30.1]} 11... Qc6 {[%clk 0:08:10.5]} 12. f3 {[%clk 0:08:01.4]} 12...
b6 {[%clk 0:07:42.4]} 13. cxb6 {[%clk 0:07:13.9]} 13... Nc4 {[%clk 0:07:36.6]}
14. Bd4 {[%clk 0:06:35.6]} 14... Nxb2 {[%clk 0:06:58.2]} 15. Qc2 {[%clk
0:06:20.5]} 15... Nc4 {[%clk 0:06:57.3]} 16. bxa7 {[%clk 0:06:21.7]} 16... Bxa3
{[%clk 0:06:44.2]} 17. Ra1 {[%clk 0:06:08.6]} 17... Bb4 {[%clk 0:06:24.4]} 18.
Bg2 {[%clk 0:05:42.2]} 18... e5 {[%clk 0:06:16.2]} 19. Bf2 {[%clk 0:05:42.9]}
19... Nd6 {[%clk 0:04:38.8]} 20. O-O {[%clk 0:04:44.7]} 20... Qxc3 {[%clk
0:04:05]} 21. Qa2 {[%clk 0:04:43.2]} 21... Qc4 {[%clk 0:03:46.9]} 22. Rfc1
{[%clk 0:04:38.2]} 22... Qe6 {[%clk 0:03:46.8]} 23. Qa4 {[%clk 0:04:34.2]} 23...
Nd5 {[%clk 0:03:22.2]} 24. e4 {[%clk 0:04:30.1]} 24... Nc3 {[%clk 0:03:05.1]}
25. Qxb4 {[%clk 0:04:28.2]} 25... Ne2+ {[%clk 0:03:05.3]} 26. Kh1 {[%clk
0:04:27.5]} 26... Nxc1 {[%clk 0:03:06.3]} 27. Rxc1 {[%clk 0:04:28.3]} 27... Nb7
{[%clk 0:02:52.7]} 28. Rxc8 {[%clk 0:03:57.6]} 28... Rfxc8 {[%clk 0:02:23.9]}
29. Qxb7 {[%clk 0:03:57.1]} 29... Qc4 {[%clk 0:02:23.4]} 30. Kg1 {[%clk
0:03:49.6]} 30... Qc3 {[%clk 0:02:01.1]} 31. Bf1 {[%clk 0:03:22.8]} 31... Qxf3
{[%clk 0:01:49.1]} 32. Nc5 {[%clk 0:03:23.8]} 32... h5 {[%clk 0:01:10]} 33. Nxd7
{[%clk 0:03:23.2]} 33... Kh7 {[%clk 0:01:06]} 34. Nxe5 {[%clk 0:02:58.3]} 34...
Qf6 {[%clk 0:01:03.2]} 35. Nxf7 {[%clk 0:02:55.1]} 35... Rc2 {[%clk 0:01:00.5]}
36. Be3 {[%clk 0:02:39.7]} 36... Rf8 {[%clk 0:00:50.8]} 37. e5 {[%clk
0:02:09.6]} 37... Qf5 {[%clk 0:00:41.5]} 38. a8=Q {[%clk 0:02:07.7]} 38... Rxa8
{[%clk 0:00:35.3]} 39. Ng5+ {[%clk 0:02:05.3]} 1-0

[Event "GrandPrix_29.05"]
[Site "Chess.com"]
[Date "2020.05.29"]
[Round "5"]
[White "Saqo007"]
[Black "payto1"]
[Result "1-0"]
[WhiteElo "2065"]
[BlackElo "2137"]
[TimeControl "600+2"]
[EndTime "11:29:47 PDT"]
[Termination "Saqo007 won by resignation"]

1. d4 {[%clk 0:10:01.9]} 1... Nf6 {[%clk 0:09:58.1]} 2. c4 {[%clk 0:10:02.9]}
2... e6 {[%clk 0:09:59]} 3. Nc3 {[%clk 0:10:03.9]} 3... Bb4 {[%clk 0:09:59]} 4.
a3 {[%clk 0:10:05.1]} 4... Bxc3+ {[%clk 0:09:59.3]} 5. bxc3 {[%clk 0:10:07]}
5... O-O {[%clk 0:10:00]} 6. e3 {[%clk 0:10:08.5]} 6... c5 {[%clk 0:10:00.5]} 7.
Bd3 {[%clk 0:10:09.5]} 7... b6 {[%clk 0:10:01.5]} 8. Ne2 {[%clk 0:10:10]} 8...
Nc6 {[%clk 0:10:01.8]} 9. e4 {[%clk 0:10:08.8]} 9... Ne8 {[%clk 0:10:02.2]} 10.
O-O {[%clk 0:10:09.1]} 10... e5 {[%clk 0:10:00.5]} 11. d5 {[%clk 0:10:04.1]}
11... Na5 {[%clk 0:09:58.8]} 12. f4 {[%clk 0:10:05.6]} 12... f6 {[%clk
0:09:55.9]} 13. f5 {[%clk 0:09:26.7]} 13... Nd6 {[%clk 0:09:55]} 14. Rf3 {[%clk
0:09:25.1]} 14... Kf7 {[%clk 0:09:35.8]} 15. Rh3 {[%clk 0:09:19.7]} 15... h6
{[%clk 0:09:34.8]} 16. Ng3 {[%clk 0:09:19.2]} 16... Ke7 {[%clk 0:09:26.5]} 17.
Nh5 {[%clk 0:08:53.7]} 17... Rf7 {[%clk 0:09:25.3]} 18. g4 {[%clk 0:08:46.9]}
18... Ba6 {[%clk 0:09:23.3]} 19. Rg3 {[%clk 0:08:47.5]} 19... Bxc4 {[%clk
0:08:58.2]} 20. Bc2 {[%clk 0:08:47.3]} 20... Qc7 {[%clk 0:08:44.3]} 21. h4
{[%clk 0:08:44.4]} 21... Kd8 {[%clk 0:08:04.9]} 22. g5 {[%clk 0:08:42.7]} 22...
hxg5 {[%clk 0:08:05.6]} 23. hxg5 {[%clk 0:08:42]} 23... Kc8 {[%clk 0:08:06.8]}
24. g6 {[%clk 0:08:24.3]} 24... Re7 {[%clk 0:08:02.4]} 25. Nxf6 {[%clk
0:08:22.7]} 25... gxf6 {[%clk 0:06:24.5]} 26. g7 {[%clk 0:08:24.6]} 26... Kb7
{[%clk 0:06:25.7]} 27. g8=Q {[%clk 0:08:23.8]} 27... Rxg8 {[%clk 0:06:27.1]} 28.
Rxg8 {[%clk 0:08:25.5]} 28... Rh7 {[%clk 0:06:28.2]} 29. Kg2 {[%clk 0:07:57.8]}
29... Nb5 {[%clk 0:06:19.5]} 30. Bd2 {[%clk 0:07:50.8]} 30... Qd6 {[%clk
0:06:08.4]} 31. Qf3 {[%clk 0:07:31.6]} 31... Bb3 {[%clk 0:05:24.8]} 32. Bd3
{[%clk 0:07:04.1]} 32... c4 {[%clk 0:05:01.9]} 33. Be2 {[%clk 0:07:04]} 33...
Nxa3 {[%clk 0:05:00.2]} 34. Qg4 {[%clk 0:06:38.3]} 34... Bc2 {[%clk 0:04:49.7]}
35. Bf3 {[%clk 0:06:27.6]} 35... Nb3 {[%clk 0:04:48.5]} 36. Qg6 {[%clk
0:05:08.8]} 36... Re7 {[%clk 0:03:22.8]} 37. Bg5 {[%clk 0:05:08.1]} 37... Nxa1
{[%clk 0:03:09]} 38. Bxf6 {[%clk 0:05:07.8]} 38... Nb5 {[%clk 0:02:27.6]} 39.
Bxe7 {[%clk 0:05:01.3]} 39... Qxe7 {[%clk 0:02:29.5]} 40. f6 {[%clk 0:04:54.3]}
40... Qa3 {[%clk 0:02:26.1]} 41. f7 {[%clk 0:04:38.3]} 41... Qb2 {[%clk
0:02:23.4]} 42. Kh3 {[%clk 0:04:05.8]} 42... Qxc3 {[%clk 0:02:18.7]} 43. f8=Q
{[%clk 0:04:05.8]} 43... Ka6 {[%clk 0:02:19.1]} 44. Qg3 {[%clk 0:03:28]} 44...
Nb3 {[%clk 0:02:16.2]} 45. Qc8+ {[%clk 0:03:05.3]} 45... Ka5 {[%clk 0:02:16.6]}
46. Qxd7 {[%clk 0:03:04.3]} 46... Nc5 {[%clk 0:02:12.3]} 47. Qe7 {[%clk
0:02:56.3]} 47... Qd4 {[%clk 0:02:04.5]} 48. Qexe5 {[%clk 0:02:54.4]} 48... Qd2
{[%clk 0:01:44]} 49. Qa1+ {[%clk 0:02:46]} 49... Ba4 {[%clk 0:01:26.9]} 50. Qge1
{[%clk 0:02:45.6]} 50... c3 {[%clk 0:01:28.1]} 51. Qxd2 {[%clk 0:02:39.8]} 51...
cxd2 {[%clk 0:01:30]} 52. e5 {[%clk 0:02:31.4]} 52... Nb3 {[%clk 0:01:26.3]} 53.
Qb2 {[%clk 0:02:31.2]} 53... N5d4 {[%clk 0:01:24.1]} 54. Bd1 {[%clk 0:02:29.6]}
1-0

[Event "GrandPrix_29.05"]
[Site "Chess.com"]
[Date "2020.05.29"]
[Round "5"]
[White "Yuri202062"]
[Black "sahidi"]
[Result "0-1"]
[WhiteElo "1846"]
[BlackElo "2107"]
[TimeControl "600+2"]
[EndTime "11:29:55 PDT"]
[Termination "sahidi won by resignation"]

1. d4 {[%clk 0:10:01.9]} 1... Nf6 {[%clk 0:09:57.7]} 2. c4 {[%clk 0:10:02.9]}
2... c6 {[%clk 0:09:49.3]} 3. Nc3 {[%clk 0:10:03.3]} 3... d5 {[%clk 0:09:49.9]}
4. e3 {[%clk 0:10:04.3]} 4... g6 {[%clk 0:09:48.6]} 5. Nf3 {[%clk 0:10:04.6]}
5... Bg7 {[%clk 0:09:48.4]} 6. Be2 {[%clk 0:10:05.7]} 6... O-O {[%clk 0:09:49]}
7. Kf1 {[%clk 0:10:06.7]} 7... dxc4 {[%clk 0:09:38.9]} 8. Bxc4 {[%clk 0:10:07]}
8... b5 {[%clk 0:09:39.7]} 9. Be2 {[%clk 0:10:06.8]} 9... Bb7 {[%clk 0:09:37.9]}
10. h3 {[%clk 0:10:01.9]} 10... Qc7 {[%clk 0:09:15.9]} 11. Bd2 {[%clk
0:10:00.7]} 11... a6 {[%clk 0:09:14]} 12. Rc1 {[%clk 0:09:50.7]} 12... Nbd7
{[%clk 0:09:13.9]} 13. b4 {[%clk 0:09:49.9]} 13... Qd6 {[%clk 0:09:12.6]} 14. a3
{[%clk 0:09:49.6]} 14... a5 {[%clk 0:09:13.3]} 15. Qb3 {[%clk 0:09:46.9]} 15...
axb4 {[%clk 0:09:05.3]} 16. axb4 {[%clk 0:09:46.9]} 16... Nb6 {[%clk 0:09:02.1]}
17. g3 {[%clk 0:09:38.6]} 17... Nc4 {[%clk 0:08:45]} 18. Be1 {[%clk 0:09:05.8]}
18... Nd5 {[%clk 0:08:40.9]} 19. Kg2 {[%clk 0:09:02.6]} 19... Ra3 {[%clk
0:08:37.9]} 20. Qb1 {[%clk 0:08:59.4]} 20... Rfa8 {[%clk 0:08:23.6]} 21. Ne4
{[%clk 0:08:56.4]} 21... Qc7 {[%clk 0:08:17.6]} 22. Nc5 {[%clk 0:07:32.4]} 22...
Ra2 {[%clk 0:07:57]} 23. Kf1 {[%clk 0:05:40.2]} 23... Rb2 {[%clk 0:07:18.5]} 24.
Qe4 {[%clk 0:05:36]} 24... Nd6 {[%clk 0:06:58]} 25. Qd3 {[%clk 0:05:09.8]} 25...
Raa2 {[%clk 0:06:52.3]} 26. Ng1 {[%clk 0:04:31.8]} 26... Nc4 {[%clk 0:06:01.2]}
27. h4 {[%clk 0:04:19.2]} 27... Ra3 {[%clk 0:05:49.1]} 28. Qe4 {[%clk
0:03:49.3]} 28... Ncxe3+ {[%clk 0:05:40.6]} 29. fxe3 {[%clk 0:03:48.8]} 29...
Rxe3 {[%clk 0:05:38.5]} 30. Qg2 {[%clk 0:03:18.7]} 30... Rexe2 {[%clk
0:05:03.4]} 31. Qxe2 {[%clk 0:03:19.5]} 31... Rxe2 {[%clk 0:05:02.6]} 32. Nxe2
{[%clk 0:03:20.4]} 32... Bc8 {[%clk 0:04:57.3]} 33. Bf2 {[%clk 0:02:37.4]} 33...
Nxb4 {[%clk 0:04:50.9]} 34. h5 {[%clk 0:02:31.8]} 34... gxh5 {[%clk 0:03:58.3]}
35. Rxh5 {[%clk 0:02:30.4]} 35... Bg4 {[%clk 0:03:49.1]} 36. Rg5 {[%clk
0:02:26.9]} 36... h5 {[%clk 0:03:46.4]} 37. Nf4 {[%clk 0:02:16.4]} 37... Qc8
{[%clk 0:03:28.1]} 38. Re1 {[%clk 0:01:53.9]} 38... e6 {[%clk 0:03:04.9]} 39.
Nxh5 {[%clk 0:01:39.3]} 39... Bxh5 {[%clk 0:03:04.3]} 40. Rxh5 {[%clk
0:01:40.4]} 40... Nd5 {[%clk 0:03:03.8]} 41. Re4 {[%clk 0:01:31.6]} 41... Nf6
{[%clk 0:02:55.9]} 42. Rg5 {[%clk 0:01:27.6]} 42... Nxe4 {[%clk 0:02:54.8]} 43.
Nxe4 {[%clk 0:01:28.1]} 43... Qd8 {[%clk 0:02:47.9]} 44. Be3 {[%clk 0:01:24.3]}
44... b4 {[%clk 0:02:36]} 45. Rg4 {[%clk 0:01:07.3]} 45... f5 {[%clk 0:02:29.2]}
46. Bg5 {[%clk 0:01:04.8]} 46... Qd5 {[%clk 0:02:18]} 0-1